bitfinex/quotes_SOLUSD_20220208
["timestamp","ask_amount","ask_price","bid_price","bid_amount"]
[1644289987393,49.48820613,116.68,116.61,0.024]
[1644289988991,1.19354993,116.67,116.61,0.024]
[1644289989591,13.55354993,116.67,116.61,0.024]
[1644289989792,48.72894581,116.66,116.61,0.024]
[1644289991492,1.19354993,116.67,116.61,0.024]
[1644289992498,13.55354993,116.68,116.61,0.024]
[1644289992794,12.36,116.68,116.61,0.024]
[1644289993800,60.79245687,116.68,116.61,0.024]
[1644289994000,61.9860068,116.68,116.61,0.024]
[1644289994202,13.55354993,116.68,116.61,0.024]
[1644289994404,12.36,116.68,116.61,0.024]
[1644289996702,46.60805168,116.68,116.61,0.024]
[1644289997203,47.80160161,116.68,116.61,0.024]
[1644289997403,46.60805168,116.68,116.61,0.024]
[1644289998006,47.80160161,116.68,116.61,0.024]
[1644289998610,46.60805168,116.68,116.61,0.024]
[1644289999705,47.80160161,116.68,116.61,0.024]
[1644290001027,1.19354993,116.67,116.61,0.024]
[1644290001228,1.19354993,116.66,116.61,0.024]
[1644290001430,12.36,116.65,116.61,0.024]
[1644290001728,15.67452889,116.65,116.61,0.024]
[1644290002128,12.36,116.65,116.61,0.024]
[1644290002729,48.03544993,116.67,116.61,0.024]
[1644290002933,13.55354993,116.67,116.61,0.024]
[1644290005132,38.11568366,116.66,116.61,0.024]
[1644290005332,39.30923359,116.66,116.61,0.024]
[1644290005740,38.11568366,116.66,116.61,0.024]
[1644290006436,13.55354993,116.67,116.61,0.024]
[1644290006833,12.36,116.67,116.61,0.024]
[1644290007542,13.55354993,116.67,116.61,0.024]
[1644290007735,12.36,116.67,116.61,0.024]
[1644290008035,13.55354993,116.67,116.61,0.024]
[1644290008238,12.36,116.67,116.61,0.024]
[1644290008934,40.11258899,116.66,116.61,0.024]
[1644290011537,52.47258899,116.66,116.61,0.024]
[1644290014040,12.36,116.66,116.61,0.024]
[1644290015045,60.9637137,116.66,116.61,0.024]
[1644290015444,62.15726363,116.66,116.61,0.024]
[1644290015644,13.55354993,116.66,116.61,0.024]
[1644290019349,42.43277185,116.65,116.61,0.024]
[1644290022355,54.79277185,116.65,116.61,0.024]
[1644290024756,55.98632178,116.65,116.61,0.024]
[1644290024956,13.55354993,116.65,116.61,0.024]
[1644290025158,12.36,116.65,116.61,0.024]
[1644290026677,1.19354993,116.66,116.61,0.024]
[1644290026878,0.08409987,116.66,116.61,0.024]
[1644290027076,2.36531312,116.71,116.61,22.5888]
[1644290027275,14.72531312,116.72,116.62,1.9488019]
[1644290027476,12.36,116.72,116.62,1.9488019]
[1644290027676,42.72218869,116.71,116.63,37.01527582]
[1644290027875,42.72218869,116.71,116.65,42.4585031]
[1644290028878,42.72218869,116.71,116.64,22.5648]
[1644290029675,42.72218869,116.71,116.64,58.80785617]
[1644290031178,42.72218869,116.71,116.66,43.82929089]
[1644290031778,12.36,116.72,116.66,43.82929089]
[1644290032379,14.48097896,116.72,116.66,43.82929089]
[1644290032778,55.89893709,116.72,116.66,43.82929089]
[1644290034079,14.48097896,116.72,116.66,43.82929089]
[1644290034281,12.36,116.72,116.66,43.82929089]
[1644290034680,12.36,116.72,116.69,1.9228763]
[1644290038283,12.36,116.72,116.7,1.276828]
[1644290042286,40.51954165,116.74,116.7,1.276828]
[1644290042687,2.12097896,116.72,116.7,1.276828]
[1644290043286,52.87954165,116.74,116.7,1.276828]
[1644290043486,55.00052061,116.74,116.7,1.276828]
[1644290044289,14.48097896,116.74,116.7,1.276828]
[1644290044688,12.36,116.74,116.7,1.276828]
[1644290045290,14.48097896,116.74,116.7,1.276828]
[1644290045991,36.69054038,116.73,116.7,1.276828]
[1644290046892,38.81151934,116.73,116.7,1.276828]
[1644290048792,2.12097896,116.73,116.7,1.276828]
[1644290050600,46.72172426,116.74,116.7,1.276828]
[1644290050996,12.36,116.74,116.7,1.276828]
[1644290051196,0.03994797,116.75,116.7,1.276828]
[1644290051396,25.43274797,116.76,116.7,1.276828]
[1644290051799,0.03994797,116.76,116.7,1.276828]
[1644290051998,0.03994797,116.76,116.71,38.12967062]
[1644290052295,43.92902303,116.78,116.71,38.12967062]
[1644290052497,0.03994797,116.77,116.71,49.08967062]
[1644290052698,43.92902303,116.78,116.71,10.96]
[1644290052898,0.03994797,116.77,116.71,10.96]
[1644290053100,43.968971,116.78,116.71,10.96]
[1644290053299,0.03994797,116.77,116.71,10.96]
[1644290053502,0.03994797,116.77,116.7,1.276828]
[1644290053699,0.03994797,116.77,116.7,49.69758133]
[1644290057007,0.03994797,116.77,116.7,1.276828]
[1644290057307,2.12097896,116.76,116.7,1.276828]
[1644290058106,34.82595633,116.75,116.7,1.276828]
[1644290058507,36.94693529,116.75,116.7,1.276828]
[1644290059810,12.36,116.74,116.7,1.276828]
[1644290060208,2.12097896,116.73,116.7,1.276828]
[1644290060410,47.93885313,116.73,116.7,1.276828]
[1644290061010,50.05983209,116.73,116.7,1.276828]
[1644290064712,62.41983209,116.73,116.7,1.276828]
[1644290065713,64.78514521,116.73,116.69,1.9228763]
[1644290067115,62.41983209,116.73,116.69,1.9228763]
[1644290070336,47.93885313,116.73,116.69,1.9228763]
[1644290071741,12.39850103,116.75,116.69,36.49781118]
[1644290072146,12.39850103,116.75,116.69,1.9228763]
[1644290073240,47.20507206,116.74,116.69,1.9228763]
[1644290073539,47.20507206,116.74,116.65,23.0062]
[1644290073740,2.15947999,116.73,116.65,23.0062]
[1644290074342,0.03850103,116.73,116.65,23.0062]
[1644290074645,0.03850103,116.73,116.66,34.31974939]
[1644290075542,2.15947999,116.73,116.66,34.31974939]
[1644290075742,39.37813843,116.72,116.66,34.31974939]
[1644290076743,39.41663946,116.72,116.66,34.31974939]
[1644290078646,39.37813843,116.72,116.66,34.31974939]
[1644290079448,39.37813843,116.72,116.65,23.0062]
[1644290079750,2.12097896,116.71,116.65,23.0062]
[1644290080453,40.26804084,116.7,116.62,0.024]
[1644290080656,40.26804084,116.7,116.62,24.3608]
[1644290080849,2.12097896,116.69,116.62,24.3368]
[1644290081049,2.12097896,116.69,116.63,0.024]
[1644290081249,52.62804084,116.7,116.63,0.024]
[1644290081452,52.62804084,116.7,116.63,37.33325686]
[1644290083249,12.36,116.7,116.63,37.33325686]
[1644290083450,12.39850103,116.72,116.63,37.33325686]
[1644290083650,0.03850103,116.72,116.64,23.8725]
[1644290083850,0.03850103,116.72,116.64,33.5445]
[1644290084249,41.78445432,116.72,116.65,38.84999975]
[1644290085049,41.74595329,116.72,116.65,38.84999975]
[1644290085450,43.86693225,116.72,116.64,23.8485]
[1644290085651,43.90543328,116.72,116.64,23.8485]
[1644290086252,46.2707464,116.72,116.64,23.8485]
[1644290086451,46.2707464,116.72,116.64,69.66164967]
[1644290087655,58.6307464,116.72,116.64,69.66164967]
[1644290088555,56.26543328,116.72,116.64,69.66164967]
[1644290088854,58.6307464,116.72,116.64,69.66164967]
[1644290089264,56.26543328,116.72,116.64,69.66164967]
[1644290090159,58.6307464,116.72,116.64,69.66164967]
[1644290091461,58.6307464,116.72,116.71,1.9228763]
[1644290091660,60.98282175,116.72,116.71,1.9228763]
[1644290091862,19.23686846,116.72,116.71,1e-08]
[1644290092061,19.23686846,116.72,116.64,23.8485]
[1644290092062,0.49962863,116.66,116.64,23.8485]
[1644290092261,0.49962863,116.66,116.65,3.12233384]
[1644290096268,0.49962863,116.66,116.65,45.05774655]
[1644290096571,0.03841891,116.71,116.65,3.12233384]
[1644290096764,42.9354965,116.72,116.65,3.12233384]
[1644290096964,40.57018338,116.72,116.65,3.12233384]
[1644290097164,40.60860229,116.72,116.65,3.12233384]
[1644290097364,40.60860229,116.72,116.66,46.34309904]
[1644290097967,0.03841891,116.72,116.66,46.34309904]
[1644290098569,0.03841891,116.73,116.67,23.8344]
[1644290098968,42.30538577,116.73,116.67,23.8344]
[1644290099169,39.87479252,116.73,116.68,33.72924802]
[1644290099369,37.5094794,116.73,116.68,33.72924802]
[1644290100569,29.70441099,116.74,116.68,33.72924802]
[1644290101673,74.5562227,116.74,116.68,33.72924802]
[1644290102489,17.52574688,116.76,116.68,33.72924802]
[1644290102675,0.03842219,116.74,116.68,46.42624802]
[1644290102877,0.03842219,116.75,116.68,46.42624802]
[1644290103075,0.03842219,116.75,116.69,23.7886]
[1644290103274,0.03842219,116.76,116.69,23.7886]
[1644290103476,0.03842219,116.76,116.7,45.55099144]
[1644290103676,34.78193219,116.77,116.69,23.7886]
[1644290103877,0.03842219,116.76,116.69,23.7886]
[1644290104680,44.23167418,116.75,116.69,23.7886]
[1644290104879,0.03842219,116.75,116.69,63.20875608]
[1644290105077,2.12097896,116.76,116.69,63.20875608]
[1644290105277,0.03842219,116.75,116.69,63.20875608]
[1644290105481,0.03842219,116.76,116.69,63.20875608]
[1644290105978,35.54577134,116.78,116.69,63.20875608]
[1644290106178,0.03842219,116.77,116.71,1.9487946]
[1644290106378,35.54577134,116.78,116.71,42.60098558]
[1644290107277,37.6667503,116.78,116.71,1.9487946]
[1644290109292,37.6667503,116.78,116.71,33.7717152]
[1644290109492,37.6667503,116.78,116.71,1.9487946]
[1644290112497,37.6667503,116.78,116.71,40.11182386]
[1644290113099,35.54577134,116.78,116.71,40.11182386]
[1644290113301,35.54577134,116.78,116.71,38.16302926]
[1644290113499,0.03842219,116.78,116.71,38.16302926]
[1644290113699,0.03842219,116.79,116.72,23.2044]
[1644290114299,0.03842219,116.82,116.72,23.2044]
[1644290114502,40.18246373,116.82,116.73,41.9093178]
[1644290114700,40.18246373,116.82,116.74,24.8212]
[1644290114900,40.18246373,116.82,116.75,38.16302926]
[1644290115101,40.14404154,116.82,116.75,38.16302926]
[1644290115700,39.64404154,116.82,116.75,38.16302926]
[1644290116601,39.64404154,116.82,116.74,24.8212]
[1644290116800,0.03842219,116.81,116.74,24.8212]
[1644290117605,0.03842219,116.81,116.74,67.82621151]
[1644290121506,0.03842219,116.81,116.74,68.07621151]
[1644290122106,0.03842219,116.81,116.77,1.9487946]
[1644290122305,39.64404154,116.82,116.77,1.9487946]
[1644290123210,0.03842219,116.85,116.77,1.9487946]
[1644290123414,0.03842219,116.85,116.77,34.8176946]
[1644290124309,0.03842219,116.85,116.78,37.6892301]
[1644290124310,41.97087999,116.85,116.78,37.6892301]
[1644290124510,41.97087999,116.85,116.77,25.2686946]
[1644290124711,44.09185895,116.85,116.77,25.2686946]
[1644290125313,43.59185895,116.85,116.77,25.2686946]
[1644290125514,0.03846741,116.84,116.77,68.01596055]
[1644290126313,0.03846741,116.84,116.77,68.26596055]
[1644290126715,0.03846741,116.84,116.77,68.01596055]
[1644290127723,0.03846741,116.84,116.77,68.26596055]
[1644290127920,0.03846741,116.87,116.77,68.26596055]
[1644290128124,0.03846741,116.87,116.78,12.36]
[1644290128325,0.03846741,116.87,116.79,23.7586]
[1644290128522,0.03846741,116.89,116.79,46.3043]
[1644290128721,0.03846741,116.86,116.8,38.28665892]
[1644290128922,0.03846741,116.88,116.81,23.7586]
[1644290129123,0.03846741,116.89,116.82,42.74726595]
[1644290130424,2.15944637,116.89,116.82,42.74726595]
[1644290130622,47.01675902,116.88,116.82,42.74726595]
[1644290130824,47.01675902,116.88,116.81,23.7586]
[1644290131024,49.13773798,116.88,116.81,23.7586]
[1644290131222,49.09927057,116.88,116.81,23.7586]
[1644290132023,46.97829161,116.88,116.81,23.7586]
[1644290134226,49.09927057,116.88,116.81,23.7586]
[1644290134625,49.13773798,116.88,116.81,23.7586]
[1644290136724,49.13773798,116.88,116.82,1.9487946]
[1644290136926,51.53055064,116.88,116.82,1.9487946]
[1644290137427,63.89055064,116.88,116.82,1.9487946]
[1644290137627,63.89055064,116.88,116.81,23.7586]
[1644290137831,4.77655949,116.87,116.79,22.5457]
[1644290138028,44.29381701,116.86,116.79,22.5457]
[1644290138228,46.41479597,116.86,116.79,22.5457]
[1644290138629,2.12097896,116.85,116.79,22.5457]
[1644290138832,44.29556595,116.84,116.79,22.5457]
[1644290139229,2.12097896,116.83,116.79,22.5457]
[1644290139431,2.12097896,116.83,116.72,12.36]
[1644290139629,2.12097896,116.83,116.68,112.7955]
[1644290139630,2.15944637,116.83,116.7,12.36]
[1644290139829,15.8130803,116.83,116.7,12.36]
[1644290140030,38.41891862,116.82,116.72,63.21780987]
[1644290140331,0.03846741,116.81,116.72,63.21780987]
[1644290143256,2.12097896,116.8,116.72,63.21780987]
[1644290143457,39.09495978,116.79,116.72,63.21780987]
[1644290144258,39.09495978,116.79,116.72,23.9227]
[1644290144460,41.21593874,116.79,116.72,23.9227]
[1644290144658,41.17747133,116.79,116.72,23.9227]
[1644290147166,34.85234462,116.76,116.72,23.9227]
[1644290148572,34.85234462,116.76,116.71,22.6925]
[1644290149871,34.85234462,116.76,116.71,64.95257139]
[1644290150768,1.23225991,116.78,116.71,64.95257139]
[1644290151266,1.23225991,116.78,116.66,12.36]
[1644290151468,1.1937925,116.77,116.64,12.36]
[1644290151667,1.1937925,116.75,116.65,23.1203]
[1644290152466,47.3362422,116.75,116.66,42.66603215]
[1644290153167,43.21629684,116.73,116.66,42.66603215]
[1644290155969,3.31477146,116.76,116.66,42.66603215]
[1644290156169,3.31477146,116.76,116.67,22.8637]
[1644290156972,45.79787394,116.75,116.68,38.45471323]
[1644290157370,47.9188529,116.75,116.68,38.45471323]
[1644290163577,47.9188529,116.75,116.67,22.8637]
[1644290163779,49.1126454,116.75,116.67,22.8637]
[1644290164481,49.1126454,116.75,116.74,1.9515647]
[1644290164679,49.1126454,116.75,116.67,65.05817393]
[1644290164882,49.1126454,116.75,116.62,0.024]
[1644290165080,1.1937925,116.73,116.62,0.024]
[1644290165280,12.36,116.72,116.61,0.024]
[1644290165481,15.67477146,116.72,116.61,0.024]
[1644290165683,2.12097896,116.71,116.61,0.024]
[1644290165882,43.52566513,116.7,116.61,0.024]
[1644290166183,2.12097896,116.71,116.62,40.75377059]
[1644290166184,26.63807896,116.71,116.62,40.75377059]
[1644290166379,26.63807896,116.71,116.63,25.0107]
[1644290166580,2.12097896,116.71,116.64,0.024]
[1644290167180,29.32840539,116.73,116.64,35.8598372]
[1644290167381,28.13461289,116.73,116.65,24.7332]
[1644290167580,14.48097896,116.73,116.66,43.84852966]
[1644290167782,2.12097896,116.73,116.66,43.84852966]
[1644290170186,3.31477146,116.73,116.66,43.84852966]
[1644290172586,1.1937925,116.73,116.66,43.84852966]
[1644290174689,37.47711528,116.72,116.66,43.84852966]
[1644290174893,38.67090778,116.72,116.66,43.84852966]
[1644290175692,1.1937925,116.72,116.66,43.84852966]
[1644290176421,2.12097896,116.71,116.65,24.7332]
[1644290176623,3.31477146,116.71,116.64,0.024]
[1644290177023,1.1937925,116.71,116.64,0.024]
[1644290177424,1.1937925,116.71,116.64,66.66528773]
[1644290178321,37.10442322,116.7,116.64,66.66528773]
[1644290178820,1.1937925,116.71,116.64,66.66528773]
[1644290180724,16.87379162,116.74,116.65,0.024]
[1644290180930,2.39281266,116.76,116.65,0.024]
[1644290181224,4.7873638,116.76,116.65,0.024]
[1644290181427,2.39281266,116.77,116.65,0.024]
[1644290181726,42.88047129,116.76,116.65,0.024]
[1644290181925,2.43128007,116.78,116.65,0.024]
[1644290182129,4.82592146,116.78,116.65,12.384]
[1644290182427,4.82592146,116.78,116.66,23.4151]
[1644290182627,0.03846741,116.78,116.66,35.7751]
[1644290182826,48.5118475,116.78,116.68,38.95063174]
[1644290183027,48.5118475,116.78,116.69,24.915]
[1644290183826,50.90466016,116.78,116.7,38.13855753]
[1644290185227,50.86619275,116.78,116.69,24.915]
[1644290185428,48.47338009,116.78,116.69,24.915]
[1644290185628,50.90466016,116.78,116.69,24.915]
[1644290185828,50.86619275,116.78,116.69,24.915]
[1644290188030,50.86619275,116.78,116.7,35.52498238]
[1644290189131,48.47338009,116.78,116.7,35.52498238]
[1644290189331,48.5118475,116.78,116.7,35.52498238]
[1644290191341,48.5118475,116.78,116.71,23.6994]
[1644290191639,48.47338009,116.78,116.71,23.6994]
[1644290192237,48.47338009,116.78,116.7,0.17305564]
[1644290192438,74.52548143,116.78,116.7,0.17305564]
[1644290192637,76.91829409,116.78,116.7,0.17305564]
[1644290192837,76.87982668,116.78,116.7,0.17305564]
[1644290193036,76.87982668,116.78,116.65,0.024]
[1644290193238,29.4067611,116.77,116.61,24.4934]
[1644290193437,171.58233745,116.76,116.62,0.024]
[1644290193638,4.78233745,116.75,116.62,0.024]
[1644290193838,14.75281266,116.74,116.62,0.024]
[1644290194039,42.73122618,116.73,116.62,34.31263126]
[1644290194240,12.36,116.72,116.62,34.31263126]
[1644290194440,42.14721608,116.71,116.62,34.31263126]
[1644290194638,12.36,116.7,116.62,34.31263126]
[1644290194839,34.33218128,116.69,116.62,34.31263126]
[1644290195839,36.45316024,116.69,116.62,34.31263126]
[1644290196039,36.45316024,116.69,116.62,0.024]
[1644290196246,36.45316024,116.69,116.61,24.4934]
[1644290196640,12.36,116.7,116.61,24.4934]
[1644290196844,12.36,116.7,116.62,0.024]
[1644290197041,2.12097896,116.69,116.62,0.024]
[1644290197240,2.12097896,116.69,116.61,24.4934]
[1644290197640,44.17668941,116.68,116.62,47.42676335]
[1644290197841,44.17668941,116.68,116.62,47.45076335]
[1644290198043,44.17668941,116.68,116.62,47.42676335]
[1644290199042,12.36,116.7,116.62,47.42676335]
[1644290199243,12.36,116.7,116.62,47.45076335]
[1644290200542,40.92558798,116.69,116.62,47.45076335]
[1644290200742,12.36,116.7,116.62,47.45076335]
[1644290204245,12.36,116.72,116.62,47.45076335]
[1644290205046,12.36,116.72,116.63,23.6718]
[1644290205247,49.67313276,116.72,116.64,35.57995612]
[1644290205549,51.79411172,116.72,116.64,35.57995612]
[1644290206248,51.79411172,116.72,116.64,0.024]
[1644290207450,51.79411172,116.72,116.64,37.41163153]
[1644290208951,51.79411172,116.72,116.64,0.024]
[1644290209151,51.79411172,116.72,116.61,0.024]
[1644290210469,51.79411172,116.72,116.62,41.73943654]
[1644290210768,51.79411172,116.72,116.64,38.62628341]
[1644290211168,51.79411172,116.72,116.64,38.65028341]
[1644290213870,12.36,116.72,116.64,38.65028341]
[1644290214875,47.19747195,116.7,116.64,38.65028341]
[1644290215074,47.19747195,116.7,116.64,38.62628341]
[1644290215271,12.36,116.72,116.64,38.62628341]
[1644290215472,12.36,116.72,116.64,38.65028341]
[1644290215672,2.12097896,116.71,116.64,38.65028341]
[1644290215872,12.36,116.72,116.64,38.65028341]
[1644290216274,34.63586231,116.71,116.64,38.65028341]
[1644290217075,2.12097896,116.7,116.64,0.024]
[1644290217277,2.12097896,116.7,116.61,0.024]
[1644290217484,46.99586231,116.71,116.61,0.024]
[1644290218078,49.11684127,116.71,116.61,41.70431042]
[1644290218377,46.99586231,116.71,116.62,0.024]
[1644290218776,2.12097896,116.7,116.62,0.024]
[1644290219177,12.36,116.71,116.63,41.30240905]
[1644290219378,13.0482,116.73,116.63,41.30240905]
[1644290219577,13.0482,116.73,116.64,23.7295]
[1644290219777,13.0482,116.73,116.64,23.7535]
[1644290219981,13.0482,116.73,116.65,0.024]
[1644290220179,59.13593346,116.73,116.65,37.37427999]
[1644290221782,2.12097896,116.72,116.65,37.37427999]
[1644290222082,45.18821136,116.71,116.65,37.37427999]
[1644290222283,45.18821136,116.71,116.65,37.35027999]
[1644290222884,2.12097896,116.72,116.65,37.35027999]
[1644290223183,2.12097896,116.72,116.65,37.37427999]
[1644290223383,15.44101266,116.73,116.65,37.37427999]
[1644290225688,13.0482,116.73,116.65,37.37427999]
[1644290226288,2.39281266,116.74,116.65,37.37427999]
[1644290226489,19.91726208,116.76,116.66,23.564]
[1644290226892,2.43128007,116.78,116.67,1.92810558]
[1644290227088,39.30969231,116.79,116.68,45.63243948]
[1644290227290,0.03846741,116.78,116.69,46.9603]
[1644290227489,0.03846741,116.78,116.7,37.35027999]
[1644290227688,39.2712249,116.79,116.7,37.35027999]
[1644290227689,36.91687965,116.79,116.7,39.27838557]
[1644290227892,36.91687965,116.79,116.7,37.60027999]
[1644290228490,36.91687965,116.79,116.7,37.35027999]
[1644290228692,2.12097896,116.78,116.7,37.35027999]
[1644290228890,43.50942718,116.77,116.7,37.35027999]
[1644290229289,2.12097896,116.78,116.7,37.35027999]
[1644290229592,2.12097896,116.78,116.71,24.9263]
[1644290229991,0.03846741,116.8,116.71,24.9263]
[1644290230190,36.00890306,116.8,116.72,41.00092235]
[1644290230390,38.09141461,116.8,116.72,41.00092235]
[1644290230593,36.00890306,116.8,116.72,41.00092235]
[1644290231993,0.03846741,116.8,116.72,41.00092235]
[1644290232193,4.8183309,116.81,116.73,23.6548]
[1644290232492,0.03846741,116.81,116.73,23.6548]
[1644290232695,2.12097896,116.81,116.73,23.6548]
[1644290233096,45.92386378,116.81,116.74,40.81856094]
[1644290233292,45.88539637,116.81,116.74,40.81856094]
[1644290234795,44.78939295,116.79,116.74,40.81856094]
[1644290235398,44.78939295,116.79,116.73,23.6548]
[1644290236096,46.91037191,116.79,116.73,23.6548]
[1644290236296,2.12097896,116.79,116.73,23.6548]
[1644290236497,2.15944637,116.82,116.73,23.6548]
[1644290236697,0.03846741,116.82,116.73,23.6548]
[1644290237296,41.23428523,116.82,116.74,39.85340186]
[1644290237496,41.19581782,116.82,116.74,39.85340186]
[1644290237697,2.12097896,116.81,116.74,39.85340186]
[1644290237899,48.77563381,116.8,116.74,39.85340186]
[1644290238397,2.12097896,116.79,116.74,39.85340186]
[1644290238598,48.77563381,116.8,116.74,39.85340186]
[1644290238999,50.89661277,116.8,116.74,39.85340186]
[1644290240200,16.33546681,116.82,116.74,39.85340186]
[1644290241304,58.17233974,116.82,116.74,39.85340186]
[1644290241500,56.05136078,116.82,116.74,39.85340186]
[1644290242102,14.21448785,116.82,116.74,39.85340186]
[1644290242303,0.03846741,116.82,116.74,40.10340186]
[1644290242503,14.48097896,116.84,116.74,40.10340186]
[1644290242504,0.03846741,116.83,116.75,24.8664]
[1644290242705,0.03846741,116.84,116.75,27.04450558]
[1644290242905,0.03846741,116.83,116.75,56.27420558]
[1644290243103,0.03846741,116.83,116.76,37.65842892]
[1644290243303,42.5834909,116.87,116.76,37.90842892]
[1644290243504,0.03846741,116.86,116.78,35.35557063]
[1644290243725,42.5834909,116.87,116.78,35.35557063]
[1644290243922,0.03846741,116.86,116.78,35.35557063]
[1644290244124,42.5834909,116.87,116.78,35.35557063]
[1644290244324,0.03846741,116.86,116.78,35.35557063]
[1644290245024,42.5834909,116.87,116.78,35.35557063]
[1644290251235,68.44062246,116.87,116.77,24.8664]
[1644290251533,0.03846741,116.86,116.75,23.2297]
[1644290251735,12.39846741,116.86,116.75,23.2297]
[1644290251931,2.12097896,116.85,116.75,23.2297]
[1644290252131,38.51014853,116.84,116.76,60.47448563]
[1644290252531,40.38912208,116.82,116.76,60.47448563]
[1644290252735,40.38912208,116.82,116.76,22.6448]
[1644290253536,2.12097896,116.81,116.76,22.6448]
[1644290253739,38.67211497,116.8,116.75,23.2297]
[1644290254136,44.87307113,116.78,116.74,37.9406867]
[1644290254438,0.03846741,116.8,116.74,37.9406867]
[1644290254636,0.03846741,116.81,116.74,37.9406867]
[1644290254935,14.51944637,116.82,116.74,37.9406867]
[1644290255335,38.2789109,116.81,116.74,37.9406867]
[1644290255636,38.2789109,116.81,116.73,24.9115]
[1644290256438,2.12097896,116.8,116.73,24.9115]
[1644290256636,46.27608359,116.79,116.73,24.9115]
[1644290257238,48.39706255,116.79,116.69,24.9053]
[1644290257437,48.39706255,116.79,116.61,75.795]
[1644290257438,75.49232855,116.79,116.63,47.2262]
[1644290257638,75.49232855,116.79,116.66,0.024]
[1644290257639,24.1095,116.78,116.66,0.024]
[1644290257840,12.36,116.77,116.65,23.0902]
[1644290258038,12.36,116.77,116.66,34.51369051]
[1644290258239,43.15952779,116.76,116.66,34.51369051]
[1644290258438,43.15952779,116.76,116.68,48.46902896]
[1644290265550,43.15952779,116.76,116.67,23.0902]
[1644290265749,45.28050675,116.76,116.67,23.0902]
[1644290265950,57.64050675,116.76,116.67,23.0902]
[1644290266655,57.64050675,116.76,116.68,48.82346037]
[1644290266851,2.12097896,116.78,116.68,48.82346037]
[1644290267052,14.48097896,116.78,116.68,48.82346037]
[1644290267552,2.12097896,116.77,116.68,48.82346037]
[1644290267751,34.89752045,116.76,116.68,48.82346037]
[1644290269651,34.89752045,116.76,116.68,49.07346037]
[1644290269852,34.89752045,116.76,116.68,48.82346037]
[1644290272957,37.01849941,116.76,116.68,48.82346037]
[1644290273858,49.37849941,116.76,116.68,48.82346037]
[1644290274057,49.37849941,116.76,116.67,23.1142]
[1644290275359,64.11376541,116.76,116.67,23.1142]
[1644290275960,61.99278645,116.76,116.67,23.1142]
[1644290278783,74.73658645,116.76,116.67,23.1142]
[1644290279383,74.73658645,116.76,116.67,61.65571554]
[1644290281886,61.99278645,116.76,116.67,61.65571554]
[1644290283692,27.095266,116.76,116.67,61.65571554]
[1644290283892,2.39281266,116.79,116.67,63.83427868]
[1644290284087,38.69321119,116.8,116.67,63.83427868]
[1644290284088,41.08602385,116.8,116.68,23.6697]
[1644290284291,38.69321119,116.8,116.69,23.5569]
[1644290284499,24.16016741,116.8,116.69,25.48546314]
[1644290284791,45.32138155,116.79,116.7,37.50604007]
[1644290285190,45.32138155,116.79,116.7,37.75604007]
[1644290290696,0.03846741,116.81,116.7,37.75604007]
[1644290290896,0.03846741,116.81,116.71,22.6973]
[1644290291295,0.03846741,116.82,116.72,1.92856314]
[1644290291495,0.03846741,116.82,116.72,25.78456314]
[1644290291695,44.3144373,116.83,116.73,24.3907]
[1644290291897,0.03846741,116.81,116.74,45.4766794]
[1644290292096,0.03846741,116.82,116.74,45.4766794]
[1644290292295,44.35290471,116.83,116.74,45.7266794]
[1644290292697,44.35290471,116.83,116.74,45.4766794]
[1644290294701,44.35290471,116.83,116.74,45.7266794]
[1644290295002,44.35290471,116.83,116.74,45.4766794]
[1644290296301,44.35290471,116.83,116.75,24.7579]
[1644290296702,44.35290471,116.83,116.75,25.0079]
[1644290297103,44.35290471,116.83,116.76,5.20986704]
[1644290297303,44.3144373,116.83,116.76,5.20986704]
[1644290300708,0.03846741,116.84,116.76,5.45986704]
[1644290300908,26.61351344,116.86,116.76,5.45986704]
[1644290300909,1.22834154,116.85,116.77,24.5087]
[1644290301309,1.22834154,116.85,116.77,24.7587]
[1644290301709,44.15563324,116.85,116.78,34.76295256]
[1644290301910,44.11716583,116.85,116.78,34.76295256]
[1644290302110,42.9272917,116.85,116.78,40.2228196]
[1644290302514,42.9272917,116.85,116.78,39.9728196]
[1644290302711,42.9272917,116.85,116.78,5.20986704]
[1644290303110,44.11716583,116.85,116.78,5.20986704]
[1644290303728,44.11716583,116.85,116.79,36.23784434]
[1644290304129,44.11716583,116.85,116.78,5.20986704]
[1644290304730,1.18987413,116.84,116.78,5.20986704]
[1644290305135,1.18987413,116.84,116.78,45.03474663]
[1644290305331,44.11716583,116.85,116.78,45.03474663]
[1644290306834,1.18987413,116.84,116.78,45.03474663]
[1644290308132,44.11716583,116.85,116.78,45.03474663]